[Event "Early-Titled-Tuesday-Blitz-March-05-2024"]
[Site "Chess.com"]
[Date "2024.03.05"]
[Round "4"]
[White "mortngabriel"]
[Black "TheCavemanChess"]
[Result "1/2-1/2"]
[WhiteElo "2537"]
[BlackElo "2712"]
[TimeControl "180+1"]
[EndTime "8:44:05 PST"]
[Termination "Game drawn by 50-move rule"]

1. d4 {[%clk 0:03:00.9]} 1... Nf6 {[%clk 0:02:56.1]} 2. Nf3 {[%clk 0:02:55.9]}
2... d5 {[%clk 0:02:56.2]} 3. c4 {[%clk 0:02:55.8]} 3... e6 {[%clk 0:02:55.9]}
4. Nc3 {[%clk 0:02:56.1]} 4... Be7 {[%clk 0:02:56.4]} 5. Bf4 {[%clk 0:02:56.5]}
5... O-O {[%clk 0:02:56.1]} 6. e3 {[%clk 0:02:57.3]} 6... b6 {[%clk 0:02:51.7]}
7. cxd5 {[%clk 0:02:57.4]} 7... Nxd5 {[%clk 0:02:51]} 8. Nxd5 {[%clk 0:02:57.2]}
8... exd5 {[%clk 0:02:51.9]} 9. a3 {[%clk 0:02:56.3]} 9... c5 {[%clk 0:02:52]}
10. Bd3 {[%clk 0:02:54.5]} 10... Nc6 {[%clk 0:02:47.1]} 11. Rc1 {[%clk
0:02:52.5]} 11... Bg4 {[%clk 0:02:44]} 12. O-O {[%clk 0:02:39.8]} 12... Bh5
{[%clk 0:02:43.7]} 13. Qc2 {[%clk 0:02:35.7]} 13... Bg6 {[%clk 0:02:42.3]} 14.
Bxg6 {[%clk 0:02:33.6]} 14... hxg6 {[%clk 0:02:41.8]} 15. dxc5 {[%clk
0:02:33.1]} 15... bxc5 {[%clk 0:02:38.3]} 16. Rfd1 {[%clk 0:02:19.5]} 16... g5
{[%clk 0:02:27]} 17. Bg3 {[%clk 0:02:18.3]} 17... g4 {[%clk 0:02:27.5]} 18. Ne5
{[%clk 0:02:10.6]} 18... Nxe5 {[%clk 0:02:27.7]} 19. Bxe5 {[%clk 0:02:11.4]}
19... Qd7 {[%clk 0:02:28.4]} 20. e4 {[%clk 0:01:35.7]} 20... d4 {[%clk
0:02:13.9]} 21. b4 {[%clk 0:01:28.8]} 21... Qe6 {[%clk 0:02:10.9]} 22. Bg3
{[%clk 0:01:21.5]} 22... cxb4 {[%clk 0:02:11.1]} 23. axb4 {[%clk 0:01:20.2]}
23... Bxb4 {[%clk 0:02:09.1]} 24. Rxd4 {[%clk 0:01:19.5]} 24... Rac8 {[%clk
0:01:55.2]} 25. Rc4 {[%clk 0:01:12.2]} 25... Rxc4 {[%clk 0:01:40.6]} 26. Qxc4
{[%clk 0:01:13.1]} 26... Qxc4 {[%clk 0:01:32.7]} 27. Rxc4 {[%clk 0:01:14]} 27...
Rd8 {[%clk 0:01:31.8]} 28. h3 {[%clk 0:01:08.6]} 28... a5 {[%clk 0:01:27.3]} 29.
hxg4 {[%clk 0:01:03.1]} 29... Rd1+ {[%clk 0:01:25.3]} 30. Kh2 {[%clk 0:01:02.8]}
30... Rb1 {[%clk 0:01:26.2]} 31. Rc8+ {[%clk 0:00:57.6]} 31... Kh7 {[%clk
0:01:26.5]} 32. Ra8 {[%clk 0:00:42.8]} 32... Ra1 {[%clk 0:01:24.9]} 33. Ra7
{[%clk 0:00:41.9]} 33... Kg8 {[%clk 0:01:08.6]} 34. Ra8+ {[%clk 0:00:41.7]}
34... Kh7 {[%clk 0:01:08.2]} 35. Ra7 {[%clk 0:00:42.4]} 35... Kg6 {[%clk
0:00:59.1]} 36. Ra6+ {[%clk 0:00:42.3]} 36... Kg5 {[%clk 0:00:52.7]} 37. Bd6
{[%clk 0:00:34.1]} 37... Bxd6+ {[%clk 0:00:30.5]} 38. Rxd6 {[%clk 0:00:35]}
38... a4 {[%clk 0:00:31.1]} 39. Kg3 {[%clk 0:00:30.9]} 39... f6 {[%clk
0:00:31.7]} 40. Rd5+ {[%clk 0:00:24.7]} 40... Kg6 {[%clk 0:00:30.3]} 41. Ra5
{[%clk 0:00:25.6]} 41... Kf7 {[%clk 0:00:29.2]} 42. Kf4 {[%clk 0:00:23.4]} 42...
Ra2 {[%clk 0:00:24.2]} 43. f3 {[%clk 0:00:21.5]} 43... Kg6 {[%clk 0:00:18.8]}
44. g3 {[%clk 0:00:19.7]} 44... a3 {[%clk 0:00:19.2]} 45. Ra7 {[%clk 0:00:19.1]}
45... Ra1 {[%clk 0:00:18.6]} 46. Ra6 {[%clk 0:00:16.1]} 46... Kf7 {[%clk
0:00:18.6]} 47. g5 {[%clk 0:00:15]} 47... a2 {[%clk 0:00:14.2]} 48. gxf6 {[%clk
0:00:14.5]} 48... gxf6 {[%clk 0:00:15.1]} 49. Kf5 {[%clk 0:00:13.9]} 49... Rf1
{[%clk 0:00:14.6]} 50. Ra7+ {[%clk 0:00:13.2]} 50... Kg8 {[%clk 0:00:14.1]} 51.
Rxa2 {[%clk 0:00:11.9]} 51... Rxf3+ {[%clk 0:00:14.6]} 52. Kg6 {[%clk
0:00:12.3]} 52... Kf8 {[%clk 0:00:13.3]} 53. g4 {[%clk 0:00:10]} 53... Ke7
{[%clk 0:00:13.4]} 54. Ra7+ {[%clk 0:00:09.4]} 54... Ke6 {[%clk 0:00:13.8]} 55.
Ra6+ {[%clk 0:00:07.8]} 55... Ke5 {[%clk 0:00:14.4]} 56. g5 {[%clk 0:00:07.4]}
56... fxg5 {[%clk 0:00:13.1]} 57. Kxg5 {[%clk 0:00:07.5]} 57... Kxe4 {[%clk
0:00:13.4]} 58. Ra4+ {[%clk 0:00:07]} 58... Kd5 {[%clk 0:00:13.9]} 59. Ra5+
{[%clk 0:00:07.4]} 59... Kc4 {[%clk 0:00:14.5]} 60. Rf5 {[%clk 0:00:07.5]} 60...
Rg3+ {[%clk 0:00:14.3]} 61. Kf6 {[%clk 0:00:07.9]} 61... Rg1 {[%clk 0:00:15.2]}
62. Rg5 {[%clk 0:00:08.3]} 62... Rd1 {[%clk 0:00:14.6]} 63. Rf5 {[%clk
0:00:08.6]} 63... Kd4 {[%clk 0:00:15.2]} 64. Kg5 {[%clk 0:00:08]} 64... Ke4
{[%clk 0:00:15.4]} 65. Rf4+ {[%clk 0:00:08.2]} 65... Ke5 {[%clk 0:00:16]} 66.
Rf5+ {[%clk 0:00:08.6]} 66... Ke6 {[%clk 0:00:16.7]} 67. Rf6+ {[%clk 0:00:09.1]}
67... Ke7 {[%clk 0:00:17.4]} 68. Rf4 {[%clk 0:00:09.5]} 68... Rg1+ {[%clk
0:00:17.7]} 69. Kf5 {[%clk 0:00:09.6]} 69... Kd6 {[%clk 0:00:17.5]} 70. Rg4
{[%clk 0:00:09.3]} 70... Re1 {[%clk 0:00:17.3]} 71. Re4 {[%clk 0:00:09.2]} 71...
Rh1 {[%clk 0:00:16.9]} 72. Rg4 {[%clk 0:00:09.3]} 72... Kd5 {[%clk 0:00:16.9]}
73. Kf4 {[%clk 0:00:09.1]} 73... Rf1+ {[%clk 0:00:16.8]} 74. Kg5 {[%clk
0:00:08.4]} 74... Ke5 {[%clk 0:00:17]} 75. Rg3 {[%clk 0:00:08.4]} 75... Rf8
{[%clk 0:00:15.8]} 76. Kg4 {[%clk 0:00:08.5]} 76... Rg8+ {[%clk 0:00:15.5]} 77.
Kf3 {[%clk 0:00:08.5]} 77... Rc8 {[%clk 0:00:16.1]} 78. Rg5+ {[%clk 0:00:07.8]}
78... Kf6 {[%clk 0:00:16.7]} 79. Ra5 {[%clk 0:00:07.6]} 79... Rc4 {[%clk
0:00:17.2]} 80. Ke3 {[%clk 0:00:07.6]} 80... Rc3+ {[%clk 0:00:17.4]} 81. Kd4
{[%clk 0:00:07.8]} 81... Rf3 {[%clk 0:00:17.9]} 82. Ke4 {[%clk 0:00:06.4]} 82...
Rh3 {[%clk 0:00:18.2]} 83. Kf4 {[%clk 0:00:05.2]} 83... Rh4+ {[%clk 0:00:18.2]}
84. Kg3 {[%clk 0:00:05.5]} 84... Rd4 {[%clk 0:00:18.1]} 85. Kf3 {[%clk
0:00:05.5]} 85... Ke6 {[%clk 0:00:18.7]} 86. Ke3 {[%clk 0:00:05.6]} 86... Rh4
{[%clk 0:00:19.2]} 87. Kf3 {[%clk 0:00:05.2]} 87... Kd6 {[%clk 0:00:19.5]} 88.
Kg3 {[%clk 0:00:05.5]} 88... Rc4 {[%clk 0:00:20.2]} 89. Kf3 {[%clk 0:00:05.6]}
89... Kc6 {[%clk 0:00:20.4]} 90. Rf5 {[%clk 0:00:05.6]} 90... Rc3+ {[%clk
0:00:20.2]} 91. Kg4 {[%clk 0:00:05.7]} 91... Kb6 {[%clk 0:00:21.1]} 92. Rf3
{[%clk 0:00:06]} 92... Rc7 {[%clk 0:00:20.3]} 93. Rf4 {[%clk 0:00:06.9]} 93...
Rg7+ {[%clk 0:00:20.5]} 94. Kf3 {[%clk 0:00:07.8]} 94... Kc5 {[%clk 0:00:21.2]}
95. Rg4 {[%clk 0:00:08.4]} 95... Rd7 {[%clk 0:00:21.1]} 96. Rf4 {[%clk
0:00:08.9]} 96... Kd5 {[%clk 0:00:21.6]} 97. Kg4 {[%clk 0:00:09.2]} 97... Ke5
{[%clk 0:00:21.6]} 98. Rf5+ {[%clk 0:00:09.3]} 98... Ke4 {[%clk 0:00:22.2]} 99.
Rf4+ {[%clk 0:00:09.8]} 99... Ke3 {[%clk 0:00:23]} 100. Rf3+ {[%clk 0:00:10.4]}
100... Ke2 {[%clk 0:00:23.7]} 101. Rf5 {[%clk 0:00:10.6]} 101... Rd4+ {[%clk
0:00:23.3]} 102. Kg5 {[%clk 0:00:10.8]} 102... Ke3 {[%clk 0:00:23.3]} 103. Kf6
{[%clk 0:00:11.2]} 103... Ke4 {[%clk 0:00:23.1]} 104. Re5+ {[%clk 0:00:11.2]}
104... Kf4 {[%clk 0:00:23.7]} 105. Rf5+ {[%clk 0:00:11.9]} 105... Kg4 {[%clk
0:00:24.3]} 106. Rg5+ {[%clk 0:00:12.6]} 106... Kh4 {[%clk 0:00:25]} 107. Rf5
{[%clk 0:00:13.2]} 107... Rd6+ {[%clk 0:00:25]} 1/2-1/2

[Event "Early-Titled-Tuesday-Blitz-March-05-2024"]
[Site "Chess.com"]
[Date "2024.03.05"]
[Round "4"]
[White "Boorchess"]
[Black "PeshkaCh"]
[Result "1/2-1/2"]
[WhiteElo "2527"]
[BlackElo "2826"]
[TimeControl "180+1"]
[EndTime "8:44:29 PST"]
[Termination "Game drawn - insufficient material"]

1. d4 {[%clk 0:02:56.9]} 1... Nf6 {[%clk 0:03:00]} 2. c4 {[%clk 0:02:56.6]} 2...
e6 {[%clk 0:03:00.4]} 3. Nc3 {[%clk 0:02:56.1]} 3... d5 {[%clk 0:03:01]} 4. cxd5
{[%clk 0:02:54.6]} 4... exd5 {[%clk 0:03:01]} 5. Bg5 {[%clk 0:02:54.3]} 5... Be7
{[%clk 0:03:01.5]} 6. e3 {[%clk 0:02:54.1]} 6... O-O {[%clk 0:03:01.9]} 7. Bd3
{[%clk 0:02:52.6]} 7... c6 {[%clk 0:03:02.1]} 8. Nge2 {[%clk 0:02:51.6]} 8... h6
{[%clk 0:03:02.7]} 9. Bh4 {[%clk 0:02:51.3]} 9... Nh5 {[%clk 0:03:03.3]} 10.
Bxe7 {[%clk 0:02:50.6]} 10... Qxe7 {[%clk 0:03:04.2]} 11. O-O {[%clk 0:02:48.1]}
11... Bg4 {[%clk 0:03:04.8]} 12. Qd2 {[%clk 0:02:45.2]} 12... Bxe2 {[%clk
0:03:04.5]} 13. Nxe2 {[%clk 0:02:42.9]} 13... a5 {[%clk 0:03:04.6]} 14. Rfe1
{[%clk 0:02:38.5]} 14... Na6 {[%clk 0:03:04.7]} 15. a3 {[%clk 0:02:37.3]} 15...
Nc7 {[%clk 0:03:04.8]} 16. Nc3 {[%clk 0:02:29.2]} 16... Nf6 {[%clk 0:02:53.6]}
17. b3 {[%clk 0:02:20.8]} 17... Nce8 {[%clk 0:02:47.2]} 18. Rec1 {[%clk
0:02:11.5]} 18... Nd6 {[%clk 0:02:45.8]} 19. b4 {[%clk 0:02:04.4]} 19... axb4
{[%clk 0:02:37.9]} 20. axb4 {[%clk 0:02:04.4]} 20... b5 {[%clk 0:02:38.6]} 21.
Qb2 {[%clk 0:01:39.7]} 21... Qb7 {[%clk 0:01:37.9]} 22. Rxa8 {[%clk 0:01:21.2]}
22... Rxa8 {[%clk 0:01:35.2]} 23. Ra1 {[%clk 0:01:21.4]} 23... Nc4 {[%clk
0:01:23.1]} 24. Rxa8+ {[%clk 0:01:20.8]} 24... Qxa8 {[%clk 0:01:23]} 25. Qa2
{[%clk 0:01:21.7]} 25... Qxa2 {[%clk 0:00:56.6]} 26. Nxa2 {[%clk 0:01:20.9]}
26... Nb2 {[%clk 0:00:57.5]} 27. Bc2 {[%clk 0:01:17.7]} 27... Nd7 {[%clk
0:00:51.8]} 28. Kf1 {[%clk 0:01:13.9]} 28... Nb8 {[%clk 0:00:50.7]} 29. Ke1
{[%clk 0:01:12.5]} 29... Nc4 {[%clk 0:00:47.9]} 30. Nc1 {[%clk 0:01:10.2]} 30...
Na6 {[%clk 0:00:43]} 31. Nd3 {[%clk 0:01:06.5]} 31... f6 {[%clk 0:00:42]} 32.
Bb3 {[%clk 0:01:03.5]} 32... Nd6 {[%clk 0:00:38.6]} 33. f3 {[%clk 0:01:01.4]}
33... Kf8 {[%clk 0:00:38.4]} 34. Kd2 {[%clk 0:01:01.2]} 34... Ke7 {[%clk
0:00:38.4]} 35. g4 {[%clk 0:00:56.2]} 35... Nc4+ {[%clk 0:00:35.9]} 36. Ke2
{[%clk 0:00:53.9]} 36... Nd6 {[%clk 0:00:29.8]} 37. h4 {[%clk 0:00:52]} 37... g5
{[%clk 0:00:26.8]} 38. hxg5 {[%clk 0:00:50.5]} 38... hxg5 {[%clk 0:00:27.7]} 39.
Kd2 {[%clk 0:00:48.5]} 39... f5 {[%clk 0:00:27.6]} 40. gxf5 {[%clk 0:00:44.2]}
40... Nxf5 {[%clk 0:00:28.5]} 41. Ke2 {[%clk 0:00:42.3]} 41... Nd6 {[%clk
0:00:23.6]} 42. Kd2 {[%clk 0:00:39.6]} 42... Nc4+ {[%clk 0:00:23.7]} 43. Ke2
{[%clk 0:00:38.4]} 43... Nd6 {[%clk 0:00:23.9]} 44. Kd2 {[%clk 0:00:38.6]} 44...
Kf6 {[%clk 0:00:24]} 45. Ke2 {[%clk 0:00:32.3]} 45... Nf5 {[%clk 0:00:22.9]} 46.
Bc2 {[%clk 0:00:28.1]} 46... Nh4 {[%clk 0:00:21.6]} 47. Kf2 {[%clk 0:00:23.8]}
47... Kg7 {[%clk 0:00:18.3]} 48. Bb1 {[%clk 0:00:23.5]} 48... Kh6 {[%clk
0:00:17.9]} 49. Kg3 {[%clk 0:00:19.5]} 49... Nf5+ {[%clk 0:00:18.1]} 50. Kf2
{[%clk 0:00:19.6]} 50... Nd6 {[%clk 0:00:18.8]} 51. Ke2 {[%clk 0:00:19.2]} 51...
Kh5 {[%clk 0:00:16.6]} 52. Kf2 {[%clk 0:00:17.9]} 52... Kh4 {[%clk 0:00:16.9]}
53. Ne5 {[%clk 0:00:15]} 53... Nxb4 {[%clk 0:00:15.5]} 54. Bg6 {[%clk
0:00:12.9]} 54... Nc4 {[%clk 0:00:11.6]} 55. Be8 {[%clk 0:00:13]} 55... Nxe5
{[%clk 0:00:11.1]} 56. dxe5 {[%clk 0:00:13.1]} 56... Nd3+ {[%clk 0:00:12]} 57.
Ke2 {[%clk 0:00:12.4]} 57... Nxe5 {[%clk 0:00:12.9]} 58. f4 {[%clk 0:00:12.6]}
58... gxf4 {[%clk 0:00:07.2]} 59. exf4 {[%clk 0:00:12.8]} 59... Ng4 {[%clk
0:00:02.8]} 60. Bxc6 {[%clk 0:00:12.6]} 60... b4 {[%clk 0:00:02.3]} 61. Bxd5
{[%clk 0:00:12.3]} 61... Kg3 {[%clk 0:00:03]} 62. f5 {[%clk 0:00:11.7]} 62...
Kf4 {[%clk 0:00:03.3]} 63. f6 {[%clk 0:00:11.7]} 63... Nxf6 {[%clk 0:00:03.5]}
64. Bb3 {[%clk 0:00:11.3]} 64... Ke4 {[%clk 0:00:03.9]} 65. Kd2 {[%clk
0:00:11.7]} 65... Kd4 {[%clk 0:00:04.8]} 66. Kc2 {[%clk 0:00:12.1]} 66... Ne4
{[%clk 0:00:05.4]} 67. Bg8 {[%clk 0:00:11.4]} 67... Nc5 {[%clk 0:00:05.8]} 68.
Kb2 {[%clk 0:00:11.3]} 68... Kd3 {[%clk 0:00:05.6]} 69. Bf7 {[%clk 0:00:11]}
69... Kd2 {[%clk 0:00:05.6]} 70. Bg8 {[%clk 0:00:11.3]} 70... Ke3 {[%clk
0:00:05.6]} 71. Bf7 {[%clk 0:00:11.6]} 71... Kd4 {[%clk 0:00:06.2]} 72. Bg8
{[%clk 0:00:12]} 72... Ne4 {[%clk 0:00:06.5]} 73. Bh7 {[%clk 0:00:09.7]} 73...
Nd6 {[%clk 0:00:06.3]} 74. Bg8 {[%clk 0:00:09.7]} 74... Kc5 {[%clk 0:00:06.4]}
75. Be6 {[%clk 0:00:09.6]} 75... Nb5 {[%clk 0:00:06.4]} 76. Bg8 {[%clk
0:00:09.6]} 76... Nc3 {[%clk 0:00:05.2]} 77. Bf7 {[%clk 0:00:09.7]} 77... Kb5
{[%clk 0:00:05.1]} 78. Bg8 {[%clk 0:00:10]} 78... Na4+ {[%clk 0:00:05.2]} 79.
Kb3 {[%clk 0:00:09.7]} 79... Nc5+ {[%clk 0:00:06.1]} 80. Kb2 {[%clk 0:00:09.8]}
80... Ka4 {[%clk 0:00:07]} 81. Bf7 {[%clk 0:00:09.5]} 81... Nd3+ {[%clk
0:00:07.4]} 82. Kc2 {[%clk 0:00:09.3]} 82... Ne5 {[%clk 0:00:07.7]} 83. Bg8
{[%clk 0:00:09.3]} 83... Ka3 {[%clk 0:00:08.1]} 84. Be6 {[%clk 0:00:08.3]} 84...
Nc6 {[%clk 0:00:07.6]} 85. Bg8 {[%clk 0:00:08.2]} 85... Nd4+ {[%clk 0:00:06.5]}
86. Kb1 {[%clk 0:00:08]} 86... Nf5 {[%clk 0:00:03.8]} 87. Bf7 {[%clk 0:00:07.9]}
87... Ne7 {[%clk 0:00:03.7]} 88. Be6 {[%clk 0:00:07.7]} 88... Nc6 {[%clk
0:00:03.9]} 89. Bg8 {[%clk 0:00:07.7]} 89... Ne5 {[%clk 0:00:02.8]} 90. Be6
{[%clk 0:00:07.6]} 90... Nf3 {[%clk 0:00:03.2]} 91. Bg8 {[%clk 0:00:07.2]} 91...
Ng5 {[%clk 0:00:03.7]} 92. Bd5 {[%clk 0:00:06.9]} 92... Nh3 {[%clk 0:00:04.3]}
93. Bg8 {[%clk 0:00:07.1]} 93... Nf2 {[%clk 0:00:04.8]} 94. Bf7 {[%clk
0:00:07.5]} 94... Nd1 {[%clk 0:00:05]} 95. Bg8 {[%clk 0:00:07.8]} 95... Nc3+
{[%clk 0:00:04.9]} 96. Kc2 {[%clk 0:00:08.3]} 96... Nb5 {[%clk 0:00:04.7]} 97.
Bf7 {[%clk 0:00:07.8]} 97... Nd4+ {[%clk 0:00:04.4]} 98. Kb1 {[%clk 0:00:06.7]}
98... Ne2 {[%clk 0:00:03.9]} 99. Bg8 {[%clk 0:00:06.9]} 99... Nc3+ {[%clk
0:00:02.3]} 100. Kc2 {[%clk 0:00:06.5]} 100... Na4 {[%clk 0:00:02.8]} 101. Kb1
{[%clk 0:00:06.3]} 101... b3 {[%clk 0:00:03.1]} 102. Bxb3 {[%clk 0:00:05.7]}
1/2-1/2

[Event "Early-Titled-Tuesday-Blitz-March-05-2024"]
[Site "Chess.com"]
[Date "2024.03.05"]
[Round "5"]
[White "DvaHrasta"]
[Black "BeyondMadness"]
[Result "1-0"]
[WhiteElo "2452"]
[BlackElo "2234"]
[TimeControl "180+1"]
[EndTime "8:52:16 PST"]
[Termination "DvaHrasta won by checkmate"]

1. c4 {[%clk 0:03:00.9]} 1... e6 {[%clk 0:02:58.9]} 2. g3 {[%clk 0:03:00.5]}
2... d5 {[%clk 0:02:58.7]} 3. Bg2 {[%clk 0:03:00.8]} 3... c6 {[%clk 0:02:58.9]}
4. Nf3 {[%clk 0:03:00.2]} 4... Nf6 {[%clk 0:02:59.5]} 5. O-O {[%clk 0:03:00.2]}
5... Be7 {[%clk 0:03:00]} 6. d3 {[%clk 0:02:59.2]} 6... O-O {[%clk 0:03:00.6]}
7. Qc2 {[%clk 0:02:59.5]} 7... b6 {[%clk 0:03:00.6]} 8. e4 {[%clk 0:02:59.5]}
8... Bb7 {[%clk 0:03:01.2]} 9. e5 {[%clk 0:02:59.4]} 9... Nfd7 {[%clk
0:02:59.6]} 10. d4 {[%clk 0:02:58.4]} 10... c5 {[%clk 0:02:50.7]} 11. cxd5
{[%clk 0:02:55]} 11... exd5 {[%clk 0:02:49.1]} 12. dxc5 {[%clk 0:02:52.6]} 12...
bxc5 {[%clk 0:02:47.7]} 13. Nc3 {[%clk 0:02:51.5]} 13... d4 {[%clk 0:02:46.4]}
14. Ng5 {[%clk 0:02:35.2]} 14... Bxg2 {[%clk 0:02:44.8]} 15. Qxh7# {[%clk
0:02:32.8]} 1-0

[Event "Early-Titled-Tuesday-Blitz-March-05-2024"]
[Site "Chess.com"]
[Date "2024.03.05"]
[Round "5"]
[White "lamomiajunior"]
[Black "rdarruda"]
[Result "1-0"]
[WhiteElo "2738"]
[BlackElo "2513"]
[TimeControl "180+1"]
[EndTime "8:53:46 PST"]
[Termination "lamomiajunior won by resignation"]

1. d4 {[%clk 0:03:00.9]} 1... Nf6 {[%clk 0:02:55.7]} 2. c4 {[%clk 0:03:01.2]}
2... e5 {[%clk 0:02:54.3]} 3. dxe5 {[%clk 0:03:00.9]} 3... Ne4 {[%clk
0:02:54.7]} 4. e3 {[%clk 0:02:58.3]} 4... Bb4+ {[%clk 0:02:52]} 5. Nd2 {[%clk
0:02:53.3]} 5... Nc6 {[%clk 0:02:48.6]} 6. Nf3 {[%clk 0:02:50.6]} 6... Qe7
{[%clk 0:02:44.4]} 7. a3 {[%clk 0:02:46.7]} 7... Bxd2+ {[%clk 0:02:42.8]} 8.
Nxd2 {[%clk 0:02:46.9]} 8... Nxd2 {[%clk 0:02:41.9]} 9. Bxd2 {[%clk 0:02:47.8]}
9... Nxe5 {[%clk 0:02:41.6]} 10. Bc3 {[%clk 0:02:48.4]} 10... d6 {[%clk
0:02:41.3]} 11. Be2 {[%clk 0:02:48.3]} 11... O-O {[%clk 0:02:40.4]} 12. O-O
{[%clk 0:02:48.9]} 12... Bd7 {[%clk 0:02:36.9]} 13. b4 {[%clk 0:02:49.1]} 13...
a5 {[%clk 0:02:32.9]} 14. bxa5 {[%clk 0:02:46]} 14... Rfe8 {[%clk 0:02:22.7]}
15. Rb1 {[%clk 0:02:45.7]} 15... Nc6 {[%clk 0:02:21.9]} 16. Rxb7 {[%clk
0:02:42.3]} 16... Rec8 {[%clk 0:02:19.2]} 17. Qd2 {[%clk 0:02:39.7]} 17... Nd8
{[%clk 0:02:01.7]} 18. Rbb1 {[%clk 0:02:36]} 18... Nc6 {[%clk 0:02:01.6]} 19.
Bf3 {[%clk 0:02:30.7]} 19... Ra6 {[%clk 0:01:58.6]} 20. Rfd1 {[%clk 0:02:26.3]}
20... h6 {[%clk 0:01:57.2]} 21. Bd5 {[%clk 0:02:24]} 21... Ne5 {[%clk
0:01:50.4]} 22. Bxe5 {[%clk 0:02:20.6]} 22... Qxe5 {[%clk 0:01:49.2]} 23. Bb7
{[%clk 0:02:20.7]} 1-0

[Event "Early-Titled-Tuesday-Blitz-March-05-2024"]
[Site "Chess.com"]
[Date "2024.03.05"]
[Round "5"]
[White "Fernando_Offermann"]
[Black "GWR2024"]
[Result "0-1"]
[WhiteElo "2422"]
[BlackElo "2133"]
[TimeControl "180+1"]
[EndTime "8:54:25 PST"]
[Termination "GWR2024 won by resignation"]

1. Nf3 {[%clk 0:02:59.6]} 1... f5 {[%clk 0:02:46.5]} 2. d4 {[%clk 0:02:48]} 2...
Nf6 {[%clk 0:02:45.5]} 3. c4 {[%clk 0:02:47.8]} 3... g6 {[%clk 0:02:45.2]} 4.
Nc3 {[%clk 0:02:47.6]} 4... Bg7 {[%clk 0:02:45.4]} 5. b4 {[%clk 0:02:47.8]} 5...
O-O {[%clk 0:02:45.3]} 6. b5 {[%clk 0:02:48.3]} 6... d6 {[%clk 0:02:45.3]} 7. a4
{[%clk 0:02:48.5]} 7... a6 {[%clk 0:02:43.6]} 8. Rb1 {[%clk 0:02:48.3]} 8...
axb5 {[%clk 0:02:43.3]} 9. axb5 {[%clk 0:02:48.8]} 9... Nbd7 {[%clk 0:02:42.4]}
10. Qc2 {[%clk 0:02:43.1]} 10... e5 {[%clk 0:02:41.4]} 11. e4 {[%clk 0:02:43.5]}
11... exd4 {[%clk 0:02:36.4]} 12. Nxd4 {[%clk 0:02:43.7]} 12... Nc5 {[%clk
0:02:24.5]} 13. exf5 {[%clk 0:02:35.9]} 13... Ng4 {[%clk 0:02:18.9]} 14. Nce2
{[%clk 0:02:27.8]} 14... Nxf2 {[%clk 0:02:09.6]} 15. Kxf2 {[%clk 0:02:19]} 15...
Bxd4+ {[%clk 0:02:00.9]} 16. Nxd4 {[%clk 0:02:16]} 16... Qh4+ {[%clk 0:02:01.2]}
17. g3 {[%clk 0:02:16.2]} 17... Qxd4+ {[%clk 0:01:58.4]} 18. Be3 {[%clk
0:02:16.6]} 18... Bxf5 {[%clk 0:01:47.2]} 19. Qc1 {[%clk 0:02:09.6]} 19... Bxb1+
{[%clk 0:01:34.4]} 20. Kg1 {[%clk 0:02:09.1]} 20... Rxf1+ {[%clk 0:01:18.2]} 0-1

[Event "Early-Titled-Tuesday-Blitz-March-05-2024"]
[Site "Chess.com"]
[Date "2024.03.05"]
[Round "5"]
[White "yonaltimur"]
[Black "FMStan15"]
[Result "1-0"]
[WhiteElo "2355"]
[BlackElo "2085"]
[TimeControl "180+1"]
[EndTime "8:54:49 PST"]
[Termination "yonaltimur won by resignation"]

1. e4 {[%clk 0:03:00.9]} 1... e6 {[%clk 0:02:55.9]} 2. d4 {[%clk 0:03:00.7]}
2... d5 {[%clk 0:02:55.9]} 3. Nc3 {[%clk 0:03:01]} 3... Bb4 {[%clk 0:02:54.8]}
4. e5 {[%clk 0:03:00.8]} 4... c5 {[%clk 0:02:55.1]} 5. a3 {[%clk 0:03:01.2]}
5... Bxc3+ {[%clk 0:02:55.4]} 6. bxc3 {[%clk 0:03:02.1]} 6... Qc7 {[%clk
0:02:55.8]} 7. Qg4 {[%clk 0:03:00.6]} 7... f5 {[%clk 0:02:55.9]} 8. exf6 {[%clk
0:02:50.6]} 8... Nxf6 {[%clk 0:02:54.7]} 9. Qg3 {[%clk 0:02:49]} 9... Qxg3
{[%clk 0:02:54.7]} 10. hxg3 {[%clk 0:02:49.9]} 10... cxd4 {[%clk 0:02:54.6]} 11.
cxd4 {[%clk 0:02:50.2]} 11... O-O {[%clk 0:02:54.9]} 12. Nf3 {[%clk 0:02:50]}
12... Nc6 {[%clk 0:02:55.2]} 13. Bd3 {[%clk 0:02:49.7]} 13... h6 {[%clk
0:02:52.7]} 14. Bf4 {[%clk 0:02:47.1]} 14... Ne4 {[%clk 0:02:46.2]} 15. O-O
{[%clk 0:02:32.4]} 15... g5 {[%clk 0:02:45.2]} 16. Be3 {[%clk 0:02:29.7]} 16...
g4 {[%clk 0:02:43.5]} 17. Ne5 {[%clk 0:02:27.6]} 17... Nxe5 {[%clk 0:02:41.1]}
18. Bxe4 {[%clk 0:02:27.3]} 18... dxe4 {[%clk 0:02:36.6]} 19. dxe5 {[%clk
0:02:27.4]} 19... Kg7 {[%clk 0:02:11.1]} 20. Rfd1 {[%clk 0:02:25.1]} 20... Rf7
{[%clk 0:02:08.8]} 21. Rab1 {[%clk 0:02:24.9]} 21... b6 {[%clk 0:02:08.8]} 22.
Rd6 {[%clk 0:02:23.4]} 22... Re7 {[%clk 0:02:01.2]} 23. c4 {[%clk 0:02:20.5]}
23... Rc7 {[%clk 0:01:12.6]} 24. Rc1 {[%clk 0:02:18.3]} 24... Ba6 {[%clk
0:01:08.7]} 25. c5 {[%clk 0:02:18.4]} 25... bxc5 {[%clk 0:00:58.1]} 26. Rxa6
{[%clk 0:02:17.5]} 1-0

[Event "Early-Titled-Tuesday-Blitz-March-05-2024"]
[Site "Chess.com"]
[Date "2024.03.05"]
[Round "5"]
[White "rikchessmx"]
[Black "KoningKobe"]
[Result "1-0"]
[WhiteElo "2284"]
[BlackElo "2416"]
[TimeControl "180+1"]
[EndTime "8:55:05 PST"]
[Termination "rikchessmx won by resignation"]

1. e4 {[%clk 0:03:00.9]} 1... e6 {[%clk 0:02:58]} 2. d4 {[%clk 0:03:00.4]} 2...
a6 {[%clk 0:02:57.7]} 3. Nc3 {[%clk 0:03:00.7]} 3... b5 {[%clk 0:02:57.7]} 4. a3
{[%clk 0:03:00.2]} 4... Bb7 {[%clk 0:02:58]} 5. Bd3 {[%clk 0:03:00.3]} 5... c5
{[%clk 0:02:56.6]} 6. dxc5 {[%clk 0:02:53.3]} 6... Bxc5 {[%clk 0:02:55.9]} 7.
Nge2 {[%clk 0:02:51.6]} 7... d6 {[%clk 0:02:55.4]} 8. O-O {[%clk 0:02:51]} 8...
Nf6 {[%clk 0:02:54.9]} 9. Ng3 {[%clk 0:02:50]} 9... O-O {[%clk 0:02:53.2]} 10.
Qe2 {[%clk 0:02:49.6]} 10... Nbd7 {[%clk 0:02:52.8]} 11. Kh1 {[%clk 0:02:40.3]}
11... Ne5 {[%clk 0:02:45.7]} 12. f4 {[%clk 0:02:40.1]} 12... Nxd3 {[%clk
0:02:46.3]} 13. cxd3 {[%clk 0:02:39.9]} 13... e5 {[%clk 0:02:46.8]} 14. f5
{[%clk 0:02:39.7]} 14... Nd7 {[%clk 0:02:31.8]} 15. Qh5 {[%clk 0:02:32.5]} 15...
g6 {[%clk 0:02:26]} 16. Qh6 {[%clk 0:02:29.7]} 16... Qf6 {[%clk 0:02:13.6]} 17.
Bg5 {[%clk 0:02:28.9]} 17... Qg7 {[%clk 0:02:13.8]} 18. Qh4 {[%clk 0:02:28.9]}
18... f6 {[%clk 0:02:14]} 19. Bh6 {[%clk 0:02:28.5]} 19... Qf7 {[%clk
0:02:13.5]} 20. Bxf8 {[%clk 0:02:27]} 20... Rxf8 {[%clk 0:02:14.4]} 21. fxg6
{[%clk 0:02:26.9]} 21... hxg6 {[%clk 0:02:15.3]} 22. Qg4 {[%clk 0:02:24.5]}
22... Nb6 {[%clk 0:02:04.6]} 23. Rf3 {[%clk 0:02:11.1]} 23... Qg7 {[%clk
0:01:56.8]} 24. Raf1 {[%clk 0:02:06.4]} 24... Bc8 {[%clk 0:01:56.2]} 25. Qh4
{[%clk 0:02:03.3]} 25... g5 {[%clk 0:01:51]} 26. Qh5 {[%clk 0:02:02.1]} 26... g4
{[%clk 0:01:46.2]} 27. Nf5 {[%clk 0:01:41.1]} 27... Qh7 {[%clk 0:01:19.5]} 28.
Qxg4+ {[%clk 0:01:38.9]} 1-0